[Event "46th GRE-chT Premier 2018"]
[Site "Rio Achaia"]
[Date "2018.07.11"]
[Round "3"]
[White "Dimitrov, Atanas"]
[Black "Tsagkaropoulos, Spyridon"]
[Result "1-0"]
[ECO "A45"]
[WhiteElo "2294"]
[BlackElo "2052"]
[Annotator "NA"]
[PlyCount "79"]
[EventDate "2018.07.10"]
[EventType "team-tourn"]
[EventCountry "GRE"]
[SourceTitle "playchess.com"]
[Source "ChessBase"]
[SourceQuality "1"]
[TimeControl "40/5400+30:1800+30"]

1. d4 {[%emt 0:00:31]} Nf6 {[%emt 0:00:00]} 2. g3 {[%emt 0:00:35]} e6 {[%emt 0:00:09]} 3. Bg2 {[%emt 0:01:24]} d5 {[%emt 0:02:28]} 4. Nf3 {[%emt 0:00:58]} Be7 {[%emt 0:02:01]} 5. c4 {[%emt 0:00:17]} O-O {[%emt 0:01:29]} 6. O-O {[%emt 0:02:04]} c6 {[%emt 0:05:43]} 7. Nc3 {[%emt 0:05:40]} Nbd7 {[%emt 0:01:53]} 8. b3 {[%emt 0:01:23]} Re8 {[%emt 0:09:20]} 9. Qc2 {[%emt 0:00:10]} b6 {[%emt 0:06:05]} 10. Rd1 {[%emt 0:00:55]} Bb7 {[%emt 0:01:14]} 11. e4 {[%emt 0:00:24]} dxe4 {[%emt 0:05:05]} 12. Nxe4 {[%emt 0:00:39]} Nxe4 {[%emt 0:00:23]} 13. Qxe4 {[%emt 0:00:02]} Bf6 {[%emt 0:01:38]} 14. Bf4 {[%emt 0:03:11]} a5 {[%emt 0:03:55]} 15. Rac1 {[%emt 0:03:48]} Qe7 {[%emt 0:03:44]} 16. Ne5 {[%emt 0:09:16]} Bxe5 {[%emt 0:03:16]} 17. dxe5 {[%emt 0:00:12]} Ra7 {[%emt 0:07:27]} 18. Qd4 {[%emt 0:12:55]} Ba8 {[%emt 0:02:21]} 19. Qd6 {[%emt 0:00:32]} Qxd6 {[%emt 0:08:41]} 20. Rxd6 {[%emt 0:00:13]} Rc7 {[%emt 0:01:02]} 21. Rcd1 {[%emt 0:04:44]} Nc5 {[%emt 0:02:40]} 22. Bg5 {[%emt 0:02:37]} Rcc8 {[%emt 0:03:44]} 23. Bd8 {[%emt 0:02:01]} b5 {[%emt 0:03:17]} 24. Bb6 {[%emt 0:12:24]} Na6 {[%emt 0:01:54]} 25. Bxa5 {[%emt 0:00:18]} bxc4 {[%emt 0:00:45]} 26. bxc4 {[%emt 0:00:42]} f5 {[%emt 0:04:11]} 27. exf6 {[%emt 0:22:23]} gxf6 {[%emt 0:00:12]} 28. Bb6 {[%emt 0:00:31]} c5 {[%emt 0:02:43]} 29. Bd8 {[%emt 0:00:11]} Bxg2 {[%emt 0:01:05]} 30. Kxg2 {[%emt 0:00:08]} Nb4 {[%emt 0:00:11]} 31. Bxf6 {[%emt 0:00:38]} Kf7 {[%emt 0:00:15]} 32. Be5 {[%emt 0:04:11]} Nxa2 {[%emt 0:00:18]} 33. R1d3 {[%emt 0:02:43]} Nb4 {[%emt 0:06:14]} 34. Rf3+ {[%emt 0:00:07]} Kg8 {[%emt 0:01:44]} 35. Rd7 {[%emt 0:03:39]} Nc6 {[%emt 0:01:05]} 36. Rg7+ {[%emt 0:00:06]} Kh8 {[%emt 0:00:04]} 37. Bf6 {[%emt 0:00:04]} h6 {[%emt 0:00:58]} 38. Rg6+ {[%emt 0:01:20]} Kh7 {[%emt 0:00:05]} 39. Rg7+ {[%emt 0:00:02]} Kh8 {[%emt 0:00:02]} 40. Rf4 {[%emt 0:00:00]} 1-0

[Event "46th GRE-chT Premier 2018"]
[Site "Rio Achaia"]
[Date "2018.07.11"]
[Round "3"]
[White "Spyropoulos, Nikolaos"]
[Black "Sotiropoulos, Anastasios-Theohar"]
[Result "1-0"]
[ECO "B12"]
[WhiteElo "2293"]
[BlackElo "1834"]
[Annotator "NA"]
[PlyCount "70"]
[EventDate "2018.07.10"]
[EventType "team-tourn"]
[EventCountry "GRE"]
[SourceTitle "playchess.com"]
[Source "ChessBase"]
[SourceQuality "1"]
[TimeControl "40/5400+30:1800+30"]

1. e4 {[%emt 0:03:44]} c6 {[%emt 0:00:00]} 2. d4 {[%emt 0:01:01]} d5 {[%emt 0:00:00]} 3. e5 {[%emt 0:00:02]} Bf5 {[%emt 0:00:00]} 4. h4 {[%emt 0:00:04]} h6 {[%emt 0:00:00]} 5. g4 {[%emt 0:00:04]} Bd7 {[%emt 0:00:00]} 6. Nc3 {[%emt 0:07:26]} c5 {[%emt 0:06:53]} 7. dxc5 {[%emt 0:10:25]} e6 {[%emt 0:07:55]} 8. Be3 {[%emt 0:02:54]} Qc7 {[%emt 0:05:32]} 9. f4 {[%emt 0:10:10]} Bxc5 {[%emt 0:02:19]} 10. Bxc5 {[%emt 0:00:44]} Qxc5 {[%emt 0:00:03]} 11. Qd2 {[%emt 0:00:34]} Nc6 {[%emt 0:10:06]} 12. O-O-O {[%emt 0:01:05]} O-O-O {[%emt 0:02:21]} 13. Kb1 {[%emt 0:04:33]} Nge7 {[%emt 0:04:13]} 14. Nf3 {[%emt 0:02:09]} Kb8 {[%emt 0:06:28]} 15. h5 {[%emt 0:07:59]} a6 {[%emt 0:06:25]} 16. Bd3 {[%emt 0:06:40]} Nc8 {[%emt 0:05:26]} 17. Rhg1 {[%emt 0:07:09]} b5 {[%emt 0:01:45]} 18. g5 {[%emt 0:02:44]} Nb6 {[%emt 0:01:15]} 19. gxh6 {[%emt 0:03:15]} gxh6 {[%emt 0:00:35]} 20. Rg7 {[%emt 0:00:31]} Rdf8 {[%emt 0:02:36]} 21. f5 {[%emt 0:01:12]} Be8 {[%emt 0:04:23]} 22. Ne2 {[%emt 0:01:48]} Nd7 {[%emt 0:03:40]} 23. Nf4 {[%emt 0:01:52]} Rfg8 {[%emt 0:05:58]} 24. Rxg8 {[%emt 0:00:54]} Rxg8 {[%emt 0:00:04]} 25. fxe6 {[%emt 0:00:06]} Ndxe5 {[%emt 0:00:45]} 26. Nxe5 {[%emt 0:02:51]} Nxe5 {[%emt 0:00:01]} 27. Qe2 {[%emt 0:05:18]} Nxd3 {[%emt 0:08:52]} 28. Nxd3 {[%emt 0:05:17]} Qb6 {[%emt 0:05:49]} 29. Qe5+ {[%emt 0:02:46]} Ka7 {[%emt 0:00:31]} 30. exf7 {[%emt 0:01:35]} Bxf7 {[%emt 0:00:05]} 31. Rf1 {[%emt 0:00:51]} Be8 {[%emt 0:05:47]} 32. Rf6 {[%emt 0:04:03]} Qd8 {[%emt 0:04:03]} 33. Rd6 {[%emt 0:03:00]} Rg1+ {[%emt 0:00:53]} 34. Nc1 {[%emt 0:00:11]} Qh4 {[%emt 0:01:38]} 35. Qe3+ {Qg5} Qd4 {Qh4 Qe3+} 1-0

[Event "46th GRE-chT Premier 2018"]
[Site "Rio Achaia"]
[Date "2018.07.11"]
[Round "3"]
[White "Giannoulakis, Lampros"]
[Black "Tomici, Stefan"]
[Result "1/2-1/2"]
[ECO "D35"]
[WhiteElo "2287"]
[BlackElo "2369"]
[Annotator "NA"]
[PlyCount "60"]
[EventDate "2018.07.10"]
[EventType "team-tourn"]
[EventCountry "GRE"]
[SourceTitle "playchess.com"]
[Source "ChessBase"]
[SourceQuality "1"]
[TimeControl "40/5400+30:1800+30"]

1. d4 {[%emt 0:00:37]} d5 {[%emt 0:01:49]} 2. c4 {[%emt 0:00:09]} e6 {[%emt 0:00:05]} 3. Nc3 {[%emt 0:00:13]} Nf6 {[%emt 0:00:38]} 4. cxd5 {[%emt 0:00:08]} exd5 {[%emt 0:00:17]} 5. Bg5 {[%emt 0:00:26]} Be7 {[%emt 0:00:13]} 6. e3 {[%emt 0:00:13]} O-O {[%emt 0:07:46]} 7. Bd3 {[%emt 0:00:10]} Nbd7 {[%emt 0:02:26]} 8. Nf3 {[%emt 0:02:28]} h6 {[%emt 0:06:10]} 9. Bf4 {[%emt 0:00:39]} c6 {[%emt 0:05:03]} 10. h3 {[%emt 0:01:33]} Re8 {[%emt 0:02:33]} 11. Qc2 {[%emt 0:00:04]} Bf8 {[%emt 0:06:59]} 12. g4 {[%emt 0:06:09]} c5 {[%emt 0:25:50]} 13. O-O-O {[%emt 0:03:47]} c4 {[%emt 0:09:30]} 14. Bf5 {[%emt 0:00:36]} Nb6 {[%emt 0:01:45]} 15. Ne5 {[%emt 0:02:00]} Bxf5 {[%emt 0:10:54]} 16. Qxf5 {[%emt 0:02:03]} Qc8 {[%emt 0:02:58]} 17. Rdg1 {[%emt 0:11:20]} Qe6 {[%emt 0:05:09]} 18. h4 {[%emt 0:03:09]} Ne4 {[%emt 0:05:39]} 19. Qxe6 {[%emt 0:14:21]} Rxe6 {[%emt 0:00:06]} 20. f3 {[%emt 0:03:40]} Nxc3 {[%emt 0:01:05]} 21. bxc3 {[%emt 0:00:05]} f6 {[%emt 0:02:04]} 22. Ng6 {[%emt 0:00:18]} Ba3+ {[%emt 0:00:57]} 23. Kc2 {[%emt 0:00:43]} Kf7 {[%emt 0:00:17]} 24. h5 {[%emt 0:25:55]} Na4 {[%emt 0:00:13]} 25. Rb1 {[%emt 0:00:44]} b6 {[%emt 0:00:14]} 26. Rhe1 {[%emt 0:00:42]} a6 {[%emt 0:00:42]} 27. e4 {[%emt 0:00:54]} Rd8 {[%emt 0:01:14]} 28. Bg3 {[%emt 0:07:05]} b5 {[%emt 0:00:12]} 29. Nf4 {[%emt 0:00:41]} Ree8 {[%emt 0:00:39]} 30. Nxd5 {[%emt 0:01:38]} Bd6 {[%emt 0:00:38]} 1/2-1/2

[Event "46th GRE-chT Premier 2018"]
[Site "Rio Achaia"]
[Date "2018.07.11"]
[Round "3"]
[White "Radeva, Viktoria"]
[Black "Markaki, Sofia"]
[Result "1-0"]
[ECO "B59"]
[WhiteElo "2274"]
[BlackElo "1694"]
[Annotator "ChessBase"]
[PlyCount "115"]
[EventDate "2018.07.10"]
[EventType "team-tourn"]
[EventCountry "GRE"]
[SourceTitle "playchess.com"]
[Source "ChessBase"]
[SourceQuality "1"]
[TimeControl "40/5400+30:1800+30"]

1. e4 {[%emt 0:00:41]} c5 {[%emt 0:00:00]} 2. Nf3 {[%emt 0:00:32]} d6 {[%emt 0:00:00]} 3. d4 {[%emt 0:00:27]} cxd4 {[%emt 0:00:00]} 4. Nxd4 {[%emt 0:00:04]} Nf6 {[%emt 0:00:00]} 5. Nc3 {[%emt 0:00:04]} Nc6 {[%emt 0:00:00]} 6. Be2 {[%emt 0:00:05]} e5 {[%emt 0:00:06]} 7. Nb3 {[%emt 0:00:14]} Be7 {[%emt 0:00:16]} 8. O-O {[%emt 0:00:37]} O-O {[%emt 0:04:22]} 9. Be3 {[%emt 0:00:43]} a5 {[%emt 0:00:58]} 10. f3 {[%emt 0:02:38]} Be6 {[%emt 0:00:44]} 11. Nd5 {[%emt 0:10:26]} Bxd5 {[%emt 0:01:15]} 12. exd5 {[%emt 0:00:05]} Nb4 {[%emt 0:04:09]} 13. c4 {[%emt 0:00:47]} b5 {[%emt 0:11:42]} 14. a3 {[%emt 0:06:28]} bxc4 {[%emt 0:00:27]} 15. Bxc4 {[%emt 0:00:03]} Na6 {[%emt 0:00:13]} 16. Qd3 {[%emt 0:03:14]} Nb8 {[%emt 0:21:08]} 17. Bb5 {[%emt 0:08:10]} Qc7 {[%emt 0:02:06]} 18. a4 {[%emt 0:07:10]} Qb7 {[%emt 0:01:08]} 19. Rfd1 {[%emt 0:00:11]} Rc8 {[%emt 0:08:38]} 20. Rac1 {[%emt 0:04:02]} Rxc1 {[%emt 0:04:25]} 21. Bxc1 {[%emt 0:01:12]} Bd8 {[%emt 0:02:43]} 22. Bg5 {[%emt 0:05:28]} Bb6+ {[%emt 0:03:29]} 23. Kh1 {[%emt 0:00:31]} Nfd7 {[%emt 0:03:22]} 24. Be3 {[%emt 0:14:20]} Bxe3 {[%emt 0:12:09]} 25. Qxe3 {[%emt 0:00:01]} g6 {[%emt 0:00:37]} 26. Qc3 {[%emt 0:02:45]} Qb6 {[%emt 0:10:46]} 27. Rc1 {[%emt 0:05:47]} Nf6 {[%emt 0:02:20]} 28. Qd2 {[%emt 0:03:05]} Kg7 {[%emt 0:04:47]} 29. Qd3 {[%emt 0:08:20]} Ra7 {[%emt 0:00:15]} 30. Nd2 {[%emt 0:02:04]} Rc7 {[%emt 0:00:55]} 31. Nc4 {[%emt 0:00:42]} Qc5 {[%emt 0:00:08]} 32. Rd1 {[%emt 0:00:32]} Qb4 {[%emt 0:00:43]} 33. Qc3 {[%emt 0:01:43]} Qc5 {[%emt 0:01:14]} 34. Qd2 {[%emt 0:01:08]} e4 {[%emt 0:00:55]} 35. fxe4 {[%emt 0:03:33]} Nxe4 {[%emt 0:00:26]} 36. Qd4+ {[%emt 0:00:02]} Qxd4 {[%emt 0:00:26]} 37. Rxd4 {[%emt 0:00:01]} f5 {[%emt 0:00:13]} 38. h3 {[%emt 0:00:34]} Ra7 {[%emt 0:00:24]} 39. Kg1 {[%emt 0:01:14]} Kf6 {[%emt 0:00:14]} 40. Rd1 {[%emt 0:00:00]} h6 {[%emt 0:00:00]} 41. Rc1 {[%emt 0:03:11]} Kg5 {[%emt 0:07:16]} 42. Nb6 {[%emt 0:06:27]} Rb7 {[%emt 0:01:43]} 43. Nc4 {[%emt 0:00:32]} Rc7 {[%emt 0:00:39]} 44. Rd1 {[%emt 0:01:41]} Ra7 {[%emt 0:01:48]} 45. Kf1 {[%emt 0:02:00]} Kf4 {[%emt 0:01:55]} 46. Rd3 {[%emt 0:03:20]} Re7 {[%emt 0:14:40]} 47. Rd4 {[%emt 0:05:46]} Kg5 {[%emt 0:04:48]} 48. Nxa5 {[%emt 0:03:41]} Ng3+ {[%emt 0:00:50]} 49. Kf2 {[%emt 0:02:53]} f4 {[%emt 0:00:28]} 50. Nc6 {[%emt 0:01:13]} Nh1+ {[%emt 0:00:53]} 51. Kf1 {[%emt 0:00:13]} Ng3+ {[%emt 0:00:08]} 52. Kg1 {[%emt 0:04:07]} Nxc6 {[%emt 0:01:49]} 53. dxc6 {[%emt 0:00:01]} Re1+ {[%emt 0:00:31]} 54. Kf2 {[%emt 0:00:04]} Rc1 {[%emt 0:00:27]} 55. Kf3 {[%emt 0:04:14]} Nh5 {[%emt 0:01:10]} 56. a5 {[%emt 0:01:09]} Re1 {[%emt 0:00:24]} 57. c7 {[%emt 0:00:52]} Rc1 {[%emt 0:00:06]} 58. Bc4 {[%emt 0:00:22]} 1-0

[Event "46th GRE-chT Premier 2018"]
[Site "Rio Achaia"]
[Date "2018.07.11"]
[Round "3"]
[White "Poulopoulos, Ioannis"]
[Black "Loutragotis, Dimitrios"]
[Result "0-1"]
[ECO "A48"]
[WhiteElo "2268"]
[BlackElo "2173"]
[Annotator "NA"]
[PlyCount "104"]
[EventDate "2018.07.10"]
[EventType "team-tourn"]
[EventCountry "GRE"]
[SourceTitle "playchess.com"]
[Source "ChessBase"]
[SourceQuality "1"]
[TimeControl "40/5400+30:1800+30"]

1. d4 {[%emt 0:00:00]} Nf6 {[%emt 0:00:00]} 2. Nf3 {[%emt 0:00:32]} g6 {[%emt 0:00:00]} 3. Bg5 {[%emt 0:00:20]} Bg7 {[%emt 0:00:07]} 4. Nbd2 {[%emt 0:00:35]} O-O {[%emt 0:00:42]} 5. c3 {[%emt 0:00:27]} d6 {[%emt 0:00:08]} 6. e4 {[%emt 0:00:34]} Nbd7 {[%emt 0:00:13]} 7. Bd3 {[%emt 0:01:30]} h6 {[%emt 0:00:31]} 8. Bh4 {[%emt 0:00:34]} Qe8 {[%emt 0:00:21]} 9. O-O {[%emt 0:01:49]} e5 {[%emt 0:00:57]} 10. Re1 {[%emt 0:00:55]} Nh5 {[%emt 0:00:22]} 11. dxe5 {[%emt 0:07:03]} dxe5 {[%emt 0:01:55]} 12. Nc4 {[%emt 0:00:38]} Nf4 {[%emt 0:08:46]} 13. Bf1 {[%emt 0:00:10]} Nb6 {[%emt 0:02:05]} 14. Ne3 {[%emt 0:01:36]} Be6 {[%emt 0:00:34]} 15. Qc2 {[%emt 0:01:35]} f6 {[%emt 0:12:52]} 16. Nd2 {[%emt 0:05:24]} Qf7 {[%emt 0:02:35]} 17. f3 {[%emt 0:06:49]} Rfd8 {[%emt 0:01:42]} 18. Bf2 {[%emt 0:13:51]} Bf8 {[%emt 0:02:22]} 19. b3 {[%emt 0:15:40]} a5 {[%emt 0:07:49]} 20. a4 {[%emt 0:00:48]} Nd7 {[%emt 0:00:59]} 21. Ndc4 {[%emt 0:05:30]} Nc5 {[%emt 0:04:48]} 22. Rad1 {[%emt 0:00:42]} Rxd1 {[%emt 0:11:03]} 23. Rxd1 {[%emt 0:00:24]} c6 {[%emt 0:00:06]} 24. g3 {[%emt 0:01:35]} Nh5 {[%emt 0:03:57]} 25. Nb6 {[%emt 0:10:15]} Rb8 {[%emt 0:15:48]} 26. Nec4 {[%emt 0:01:16]} Ng7 {[%emt 0:03:25]} 27. b4 {[%emt 0:06:44]} axb4 {[%emt 0:01:05]} 28. cxb4 {[%emt 0:00:05]} Na6 {[%emt 0:01:51]} 29. b5 {[%emt 0:01:15]} Nb4 {[%emt 0:01:18]} 30. Qb2 {[%emt 0:01:04]} Ne8 {[%emt 0:00:30]} 31. Be1 {[%emt 0:03:45]} Bc5+ {[%emt 0:05:22]} 32. Kh1 {[%emt 0:01:07]} Qc7 {[%emt 0:00:29]} 33. Bxb4 {[%emt 0:05:35]} Bxb6 {[%emt 0:00:19]} 34. Nxb6 {[%emt 0:00:05]} Qxb6 {[%emt 0:00:12]} 35. a5 {[%emt 0:00:11]} Qe3 {[%emt 0:01:06]} 36. Rd3 {[%emt 0:01:00]} Qa7 {[%emt 0:06:01]} 37. b6 {[%emt 0:05:09]} Qa6 {[%emt 0:00:05]} 38. Rd1 {[%emt 0:00:45]} Bc4 {[%emt 0:00:35]} 39. Bh3 {[%emt 0:01:01]} Qb5 {[%emt 0:03:27]} 40. Qc3 {[%emt 0:00:00]} c5 {[%emt 0:00:00]} 41. Bxc5 {[%emt 0:02:27]} Qxc5 {[%emt 0:11:23]} 42. Be6+ {[%emt 0:00:12]} Kh8 {[%emt 0:00:25]} 43. Qxc4 {[%emt 0:10:10]} Qxa5 {[%emt 0:01:56]} 44. Rd7 {[%emt 0:05:39]} h5 {[%emt 0:10:48]} 45. Bg8 {[%emt 0:08:05]} Ng7 {[%emt 0:00:38]} 46. Rxg7 {[%emt 0:00:15]} Qe1+ {[%emt 0:00:07]} 47. Kg2 {[%emt 0:00:04]} Qd2+ {[%emt 0:00:47]} 48. Kh3 {[%emt 0:00:08]} Kxg7 {[%emt 0:00:05]} 49. Qf7+ {[%emt 0:01:01]} Kh6 {[%emt 0:00:04]} 50. Qh7+ {[%emt 0:00:11]} Kg5 {[%emt 0:00:04]} 51. Bf7 {[%emt 0:00:03]} Qd7+ {[%emt 0:00:22]} 52. g4 {[%emt 0:00:01]} Kf4 0-1

[Event "46th GRE-chT Premier 2018"]
[Site "Rio Achaia"]
[Date "2018.07.11"]
[Round "3"]
[White "Mihailidis, Anastasios"]
[Black "Galopoulos, Nikolaos"]
[Result "1/2-1/2"]
[ECO "B50"]
[WhiteElo "2265"]
[BlackElo "2351"]
[Annotator "NA"]
[PlyCount "61"]
[EventDate "2018.07.10"]
[EventType "team-tourn"]
[EventCountry "GRE"]
[SourceTitle "playchess.com"]
[Source "ChessBase"]
[SourceQuality "1"]
[TimeControl "40/5400+30:1800+30"]

1. e4 {[%emt 0:03:19]} c5 {[%emt 0:00:00]} 2. Nf3 {[%emt 0:00:31]} d6 {[%emt 0:00:00]} 3. Bc4 {[%emt 0:00:58]} Nc6 {[%emt 0:02:54]} 4. O-O {[%emt 0:04:10]} Nf6 {[%emt 0:00:10]} 5. Qe2 {[%emt 0:01:39]} e6 {[%emt 0:04:10]} 6. c3 {[%emt 0:05:37]} Nxe4 {[%emt 0:04:09]} 7. Qxe4 {[%emt 0:00:23]} d5 {[%emt 0:00:02]} 8. Bxd5 {[%emt 0:00:11]} Qxd5 {[%emt 0:00:01]} 9. Qxd5 {[%emt 0:00:14]} exd5 {[%emt 0:00:02]} 10. Re1+ {[%emt 0:00:58]} Be7 {[%emt 0:00:08]} 11. d4 {[%emt 0:01:30]} cxd4 {[%emt 0:12:19]} 12. Nxd4 {[%emt 0:06:03]} Nxd4 {[%emt 0:00:03]} 13. cxd4 {[%emt 0:00:08]} Be6 {[%emt 0:00:04]} 14. Nc3 {[%emt 0:01:31]} Kd7 {[%emt 0:00:03]} 15. Bf4 {[%emt 0:10:20]} Rac8 {[%emt 0:00:16]} 16. Rac1 {[%emt 0:02:23]} Bb4 {[%emt 0:03:35]} 17. a3 {[%emt 0:02:25]} Bxc3 {[%emt 0:00:26]} 18. Rxc3 {[%emt 0:00:31]} Rxc3 {[%emt 0:00:09]} 19. bxc3 {[%emt 0:00:01]} Rc8 {[%emt 0:00:08]} 20. Rb1 {[%emt 0:03:37]} b6 {[%emt 0:00:17]} 21. Bd2 {[%emt 0:03:45]} Bf5 {[%emt 0:00:08]} 22. Re1 {[%emt 0:05:14]} Rc4 {[%emt 0:01:14]} 23. f3 {[%emt 0:08:08]} Ra4 {[%emt 0:02:03]} 24. Bc1 {[%emt 0:01:22]} Ra5 {[%emt 0:04:03]} 25. Kf2 {[%emt 0:02:13]} Rb5 {[%emt 0:00:26]} 26. Ke3 {[%emt 0:02:38]} Rb1 {[%emt 0:00:10]} 27. Kd2 {[%emt 0:01:19]} Ra1 {[%emt 0:00:49]} 28. Bb2 {[%emt 0:01:49]} Rxe1 {[%emt 0:00:05]} 29. Kxe1 {[%emt 0:00:06]} Kc6 {[%emt 0:00:03]} 30. Bc1 {[%emt 0:00:32]} Kb5 {[%emt 0:02:44]} 31. Bf4 {[%emt 0:00:36]} 1/2-1/2

[Event "46th GRE-chT Premier 2018"]
[Site "Rio Achaia"]
[Date "2018.07.11"]
[Round "3"]
[White "Ratsma, Rosa"]
[Black "Stoumbou, Eleni"]
[Result "1-0"]
[ECO "B10"]
[WhiteElo "2265"]
[BlackElo "1811"]
[Annotator "NA"]
[PlyCount "127"]
[EventDate "2018.07.10"]
[EventType "team-tourn"]
[EventCountry "GRE"]
[SourceTitle "playchess.com"]
[Source "ChessBase"]
[SourceQuality "1"]
[TimeControl "40/5400+30:1800+30"]

1. e4 {[%emt 0:00:00]} c6 {[%emt 0:00:00]} 2. Nc3 {[%emt 0:00:00]} d5 {[%emt 0:00:00]} 3. Nf3 {[%emt 0:00:09]} dxe4 {[%emt 0:00:02]} 4. Nxe4 {[%emt 0:00:08]} Nf6 {[%emt 0:00:22]} 5. Qe2 {[%emt 0:00:23]} Bg4 {[%emt 0:00:59]} 6. h3 {[%emt 0:01:03]} Bh5 {[%emt 0:00:54]} 7. Nxf6+ {[%emt 0:00:43]} gxf6 {[%emt 0:00:13]} 8. d3 {[%emt 0:00:32]} Qb6 {[%emt 0:10:01]} 9. g4 {[%emt 0:07:06]} Bg6 {[%emt 0:00:08]} 10. Nh4 {[%emt 0:00:50]} Nd7 {[%emt 0:11:32]} 11. Bg2 {[%emt 0:10:06]} f5 {[%emt 0:07:26]} 12. Nxf5 {[%emt 0:05:14]} Bxf5 {[%emt 0:00:22]} 13. gxf5 {[%emt 0:00:17]} Qa5+ {[%emt 0:00:55]} 14. Bd2 {[%emt 0:00:33]} Qxf5 {[%emt 0:00:22]} 15. Be4 {[%emt 0:02:41]} Qe6 {[%emt 0:02:20]} 16. Qg4 {[%emt 0:02:26]} Qxg4 {[%emt 0:13:09]} 17. hxg4 {[%emt 0:00:08]} Bg7 {[%emt 0:03:20]} 18. O-O-O {[%emt 0:02:01]} h6 {[%emt 0:10:19]} 19. f4 {[%emt 0:08:47]} O-O-O {[%emt 0:02:36]} 20. Bf3 {[%emt 0:00:51]} Bf6 {[%emt 0:03:47]} 21. Rh3 {[%emt 0:03:25]} Nb6 {[%emt 0:11:20]} 22. Be2 {[%emt 0:09:21]} Na4 {[%emt 0:02:18]} 23. c3 {[%emt 0:00:21]} Nc5 {[%emt 0:02:10]} 24. Rdh1 {[%emt 0:00:30]} Bg7 {[%emt 0:02:52]} 25. f5 {[%emt 0:05:43]} Bf6 {[%emt 0:03:42]} 26. b4 {[%emt 0:01:28]} Nd7 {[%emt 0:01:41]} 27. Rxh6 {[%emt 0:01:13]} Rxh6 {[%emt 0:01:13]} 28. Rxh6 {[%emt 0:00:16]} Rg8 {[%emt 0:07:02]} 29. Rh5 {[%emt 0:01:03]} Rh8 {[%emt 0:00:56]} 30. g5 {[%emt 0:01:31]} Bg7 {[%emt 0:00:28]} 31. d4 {[%emt 0:04:04]} Rxh5 {[%emt 0:01:05]} 32. Bxh5 {[%emt 0:00:08]} f6 {[%emt 0:00:10]} 33. g6 {[%emt 0:00:56]} Nf8 {[%emt 0:00:17]} 34. Kc2 {[%emt 0:03:44]} e6 {[%emt 0:00:47]} 35. fxe6 {[%emt 0:00:54]} Nxe6 {[%emt 0:00:09]} 36. Bg4 {[%emt 0:01:24]} Kd7 {[%emt 0:00:15]} 37. Kd3 {[%emt 0:01:30]} Ke7 {[%emt 0:01:21]} 38. Bf5 {[%emt 0:01:15]} Nf8 {[%emt 0:01:50]} 39. a4 {[%emt 0:00:52]} Nd7 {[%emt 0:00:16]} 40. Bf4 {[%emt 0:00:00]} a6 {[%emt 0:00:00]} 41. a5 {[%emt 0:04:32]} Bf8 {[%emt 0:05:42]} 42. Ke4 {[%emt 0:04:42]} Bg7 {[%emt 0:04:20]} 43. Kf3 {[%emt 0:02:47]} Nf8 {[%emt 0:01:31]} 44. Bc8 {[%emt 0:00:54]} Nxg6 {[%emt 0:00:33]} 45. Bxb7 {[%emt 0:01:44]} Nxf4 {[%emt 0:01:12]} 46. Kxf4 {[%emt 0:00:08]} Bh6+ {[%emt 0:00:44]} 47. Ke4 {[%emt 0:00:18]} Kd6 {[%emt 0:00:43]} 48. Bxa6 {[%emt 0:00:18]} f5+ {[%emt 0:00:51]} 49. Kd3 {[%emt 0:01:17]} Kc7 {[%emt 0:00:44]} 50. Bc4 {[%emt 0:01:18]} f4 {[%emt 0:01:22]} 51. Be6 {[%emt 0:00:20]} f3 {[%emt 0:03:18]} 52. c4 {[%emt 0:02:26]} Kb7 {[%emt 0:05:30]} 53. Bh3 {[%emt 0:02:46]} Bg5 {[%emt 0:04:30]} 54. Bf1 {[%emt 0:01:13]} Bh4 {[%emt 0:02:17]} 55. b5 {[%emt 0:01:47]} cxb5 {[%emt 0:01:40]} 56. cxb5 {[%emt 0:00:09]} Bd8 {[%emt 0:01:12]} 57. a6+ {[%emt 0:00:25]} Kb8 {[%emt 0:01:42]} 58. Ke4 {[%emt 0:01:48]} Bb6 {[%emt 0:00:14]} 59. Ke5 {[%emt 0:01:20]} Kc7 {[%emt 0:00:22]} 60. d5 {[%emt 0:00:51]} Bc5 {[%emt 0:01:33]} 61. Ke6 {[%emt 0:00:26]} Kd8 {[%emt 0:00:18]} 62. d6 {[%emt 0:00:26]} Ba7 {[%emt 0:00:46]} 63. Kd5 {[%emt 0:00:20]} Kd7 {[%emt 0:00:55]} 64. Bh3+ {[%emt 0:00:11]} 1-0

[Event "46th GRE-chT Premier 2018"]
[Site "Rio Achaia"]
[Date "2018.07.11"]
[Round "3"]
[White "Kesidis, Odyseas"]
[Black "Tzouganakis, Panteleimon"]
[Result "1-0"]
[ECO "B06"]
[WhiteElo "2248"]
[BlackElo "2206"]
[Annotator "NA"]
[PlyCount "107"]
[EventDate "2018.07.10"]
[EventType "team-tourn"]
[EventCountry "GRE"]
[SourceTitle "playchess.com"]
[Source "ChessBase"]
[SourceQuality "1"]
[TimeControl "40/5400+30:1800+30"]

1. e4 g6 2. d4 Bg7 3. Nf3 d6 4. Bd3 Bg4 5. c3 e5 6. dxe5 Bxf3 7. Qxf3 dxe5 8. O-O Nf6 9. Rd1 O-O 10. Bg5 Qe7 11. Nd2 Nbd7 12. Nc4 Nc5 13. Bc2 Qe6 14. Ne3 Qc6 15. Nd5 Nxd5 16. Rxd5 Ne6 17. Be3 Nd4 18. Qd1 Nxc2 19. Qxc2 b6 20. Rad1 Bf6 21. R1d2 Rfd8 22. c4 Rxd5 23. cxd5 Qd7 24. Rd1 Be7 25. Rc1 Bd6 26. Qc6 Qxc6 27. Rxc6 f6 28. Kf1 Kf7 29. Ke2 Ke7 30. g4 g5 31. Rc1 Kd7 32. h4 h6 33. Rh1 Rf8 34. hxg5 hxg5 35. Kd3 Rf7 36. Rh8 Bf8 37. Bd2 c6 38. f3 Kc7 39. a4 Kb7 40. b4 Kc7 41. dxc6 Kxc6 42. Kc4 a6 43. b5+ axb5+ 44. axb5+ Kb7 45. Kd5 Rd7+ 46. Ke6 Rd6+ 47. Kf5 Rxd2 48. Rxf8 Rb2 49. Rf7+ Kc8 50. Kxf6 Rxb5 51. Kxg5 Rb1 52. Kf6 b5 53. g5 Rf1 54. g6 1-0